bitfinex/quotes_SOLUSD_20240726
["timestamp","ask_amount","ask_price","bid_price","bid_amount"]
[1722026068746,13.0,182.49,182.46,29.5375]
[1722026068961,13.0,182.49,182.46,13.7012]
[1722026069467,13.0,182.49,182.46,19.1817]
[1722026069765,13.0,182.48,182.45,5.4809]
[1722026069959,13.0,182.47,182.43,13.7036]
[1722026070145,13.0,182.47,182.44,5.4811]
[1722026071373,13.0,182.52,182.44,5.4811]
[1722026071374,13.0,182.46,182.44,5.4811]
[1722026072061,13.0,182.47,182.44,5.4811]
[1722026073751,13.0,182.46,182.44,5.4811]
[1722026074668,5.4797,182.5,182.45,5.4806]
[1722026074844,13.0,182.49,182.43,26.7036]
[1722026075046,13.0,182.49,182.44,13.0]
[1722026075661,5.4791,182.52,182.47,5.4802]
[1722026075860,5.4791,182.52,182.45,13.7017]
[1722026075861,13.0,182.51,182.48,5.48]
[1722026076540,13.0,182.51,182.47,5.4802]
[1722026077349,13.0,182.51,182.48,5.4799]
[1722026077754,33.6936,182.57,182.48,5.4799]
[1722026078069,13.0,182.51,182.48,5.4799]
[1722026083506,13.0,182.51,182.47,19.1805]
[1722026084369,13.0,182.5,182.47,19.1805]
[1722026084575,13.0,182.5,182.47,13.7002]
[1722026085203,13.0,182.5,182.47,19.1805]
[1722026085571,13.0,182.5,182.48,5.48]
[1722026085777,33.6936,182.57,182.48,5.48]
[1722026086103,13.0,182.51,182.48,6.57584034]
[1722026086814,13.0,182.51,182.48,5.48]
[1722026087390,13.0,182.51,182.48,6.57584419]
[1722026088108,13.0,182.51,182.48,5.48]
[1722026088290,13.0,182.5,182.47,19.1805]
[1722026088608,13.0,182.49,182.45,5.4807]
[1722026088907,13.0,182.49,182.46,6.5765726]
[1722026089086,18.4794,182.5,182.46,6.5765726]
[1722026090107,18.4794,182.5,182.46,5.4806]
[1722026090501,18.4794,182.5,182.46,6.57657193]
[1722026090797,18.4794,182.5,182.46,5.4806]
[1722026091806,13.0,182.49,182.46,5.4806]
[1722026093789,13.0,182.48,182.46,5.4806]
[1722026095007,13.0,182.48,182.47,5.4803]
[1722026097213,13.0,182.48,182.44,19.1838]
[1722026097413,13.0,182.46,182.44,19.1838]
[1722026098198,13.0,182.45,182.42,5.4817]
[1722026098403,13.0,182.44,182.41,13.7053]
[1722026098593,13.0,182.44,182.42,5.4816]
[1722026098792,13.0,182.44,182.43,5.4815]
[1722026104118,13.0,182.44,182.42,5.4817]
[1722026104317,13.0,182.44,182.41,14.80156047]
[1722026104628,5.4804,182.47,182.41,13.7053]
[1722026104803,45.0,182.46,182.43,5.4815]
[1722026105009,16.478,182.51,182.43,13.7033]
[1722026105304,13.0,182.46,182.43,13.7033]
[1722026105702,45.0,182.5,182.43,13.7033]
[1722026105703,13.0,182.47,182.43,13.7033]
[1722026105908,13.0,182.47,182.43,19.1845]
[1722026107929,13.0,182.47,182.44,1.09617045]
[1722026109109,13.0,182.46,182.43,19.1845]
[1722026109303,5.4801,182.48,182.43,19.1845]
[1722026109502,13.0,182.46,182.43,19.1845]
[1722026110327,13.0,182.45,182.43,13.7033]
[1722026112033,13.0,182.45,182.43,19.1847]
[1722026112623,13.0,182.45,182.4,27.4113]
[1722026114036,13.0,182.45,182.42,5.4817]
[1722026114624,13.0,182.45,182.43,5.4815]
[1722026118035,45.0,182.5,182.43,5.4815]
[1722026118224,13.0,182.46,182.44,6.57725322]
[1722026118532,13.0,182.46,182.44,5.4811]
[1722026119331,13.0,182.46,182.41,13.7049]
[1722026119332,13.0,182.46,182.43,5.4815]
[1722026119937,5.4801,182.48,182.43,5.4815]
[1722026120256,13.0,182.46,182.43,5.4815]
[1722026120746,13.0,182.45,182.41,13.7049]
[1722026121042,13.0,182.44,182.41,13.7049]
[1722026121348,13.0,182.43,182.4,5.4824]
[1722026121721,18.4813,182.44,182.4,5.4824]
[1722026121942,13.0,182.44,182.4,5.4824]
[1722026123247,13.0,182.43,182.41,5.4821]
[1722026124747,13.0,182.42,182.37,13.7081]
[1722026125046,13.0,182.38,182.37,19.1914]
[1722026125622,50.4819,182.42,182.37,19.1914]
[1722026125852,13.0,182.38,182.37,19.1914]
[1722026127329,13.0,182.38,182.37,13.7081]
[1722026128139,13.0,182.38,182.35,5.4839]
[1722026128351,13.0,182.36,182.33,13.7106]
[1722026128522,13.0,182.34,182.33,19.1951]
[1722026130258,13.0,182.34,182.33,13.7106]
[1722026132933,45.0,182.37,182.33,19.195]
[1722026133134,13.0,182.34,182.33,19.195]
[1722026133532,13.0,182.34,182.33,13.7106]
[1722026135230,13.0,182.34,182.32,5.4847]
[1722026135738,13.0,182.33,182.32,5.4847]
[1722026135939,13.0,182.33,182.27,13.7157]
[1722026136250,45.0,182.32,182.29,5.4857]
[1722026137352,45.0,182.33,182.29,5.4857]
[1722026137849,45.0,182.33,182.27,13.7157]
[1722026137850,13.0,182.31,182.3,5.4854]
[1722026138458,13.0,182.31,182.27,13.7157]
[1722026138661,13.0,182.28,182.25,5.4868]
[1722026138841,13.0,182.27,182.25,5.4868]
[1722026140039,13.0,182.28,182.25,5.4868]
[1722026141053,13.0,182.27,182.26,5.4865]
[1722026142277,13.0,182.28,182.26,5.4865]
[1722026142943,20.0,182.35,182.27,13.7159]
[1722026143139,13.0,182.3,182.28,5.4858]
[1722026143741,13.0,182.3,182.27,13.7159]
[1722026143946,13.0,182.29,182.27,13.7159]
[1722026144836,13.0,182.29,182.27,19.2021]
[1722026147156,13.0,182.28,182.23,29.0676]
[1722026147340,13.0,182.27,182.25,5.4867]
[1722026147672,13.0,182.27,182.26,5.4866]
[1722026148369,13.0,182.28,182.27,5.4861]
[1722026160278,13.0,182.28,182.26,5.4866]
[1722026160484,13.0,182.27,182.26,5.4866]
[1722026160686,58.0,182.27,182.26,5.4866]
[1722026160981,13.0,182.27,182.26,5.4866]
[1722026163097,58.0,182.27,182.26,5.4866]
[1722026167086,20.0,182.32,182.25,13.7168]
[1722026167299,15.031,182.33,182.27,13.7153]
[1722026167505,15.031,182.33,182.29,5.4856]
[1722026167673,13.0,182.3,182.29,5.4856]
[1722026167863,13.0,182.3,182.27,19.2014]
[1722026168064,13.0,182.29,182.27,13.7153]
[1722026169004,13.0,182.29,182.27,19.2015]
[1722026169599,13.0,182.29,182.28,5.486]
[1722026170401,20.5156,182.33,182.28,5.486]
[1722026170697,13.0,182.29,182.28,5.486]
[1722026172591,13.0,182.29,182.27,13.7153]
[1722026172592,13.0,182.29,182.25,5.4869]
[1722026172805,13.0,182.26,182.24,5.4871]
[1722026173008,13.0,182.25,182.24,5.4871]
[1722026173310,13.0,182.26,182.24,5.4871]
[1722026176284,5.4858,182.29,182.25,5.4869]
[1722026176589,45.0,182.28,182.25,5.4869]
[1722026176790,13.0,182.26,182.25,5.4869]
[1722026178918,5.4852,182.31,182.27,5.4863]
[1722026179125,13.0,182.29,182.27,5.4863]
[1722026179497,13.0,182.29,182.26,5.4866]
[1722026179697,5.4852,182.31,182.26,5.4866]
[1722026179698,13.0,182.28,182.26,5.4866]
[1722026180821,13.0,182.28,182.25,13.717]
[1722026181319,13.0,182.28,182.25,19.2039]
[1722026181614,5.4857,182.3,182.26,5.4865]
[1722026181811,58.0,182.29,182.26,5.4865]
[1722026182019,13.0,182.28,182.26,5.4865]
[1722026182713,13.0,182.29,182.26,5.4865]
[1722026183292,13.0,182.29,182.25,19.2039]
[1722026186432,13.0,182.28,182.25,19.2039]
[1722026187525,13.0,182.29,182.25,19.2039]
[1722026188625,18.4858,182.29,182.25,13.717]
[1722026188800,18.486,182.28,182.25,13.717]
[1722026189004,18.486,182.28,182.19,15.6869]
[1722026189005,13.0,182.26,182.19,15.6869]
[1722026189213,13.0,182.23,182.19,15.6869]
[1722026189394,13.0,182.25,182.19,28.6869]
[1722026189596,13.0,182.25,182.21,5.4881]
[1722026190318,13.0,182.24,182.2,19.2088]
[1722026190503,13.0,182.24,182.2,13.7204]
[1722026191538,13.0,182.24,182.21,5.4881]
[1722026192529,13.0,182.24,182.22,5.4876]
[1722026196518,13.0,182.24,182.23,5.4875]
[1722026197206,13.0,182.24,182.22,5.4878]
[1722026197407,58.0,182.23,182.22,5.4878]
[1722026198020,6.1289,182.31,182.25,5.4869]
[1722026198338,6.1289,182.31,182.26,5.4866]
[1722026198339,13.0,182.27,182.26,5.4866]
[1722026198831,20.0,182.32,182.26,13.7161]
[1722026198999,13.0,182.3,182.28,5.486]
[1722026200034,13.0,182.3,182.27,5.4862]
[1722026200226,45.0,182.29,182.27,5.4862]
[1722026201035,20.5155,182.33,182.28,5.486]
[1722026201323,13.0,182.33,182.29,13.7143]
[1722026201529,13.0,182.34,182.29,13.7143]
[1722026202233,15.0457,182.38,182.32,13.7117]
[1722026202525,13.0,182.38,182.34,13.71]
[1722026202732,13.0,182.41,182.36,13.7084]
[1722026202919,16.3487,182.48,182.37,13.0]
[1722026203130,16.3487,182.48,182.41,19.1872]
[1722026203131,36.3487,182.48,182.41,19.1872]
[1722026203518,13.0,182.44,182.41,19.1872]
[1722026203816,11.5702,182.5,182.43,5.4814]
[1722026204026,13.0,182.46,182.43,5.4814]
[1722026205931,13.0,182.46,182.44,5.4811]
[1722026206132,13.0,182.47,182.44,5.4811]
[1722026207022,13.0,182.47,182.42,5.4815]
[1722026207609,5.48,182.48,182.41,13.7051]
[1722026207823,13.0,182.47,182.43,5.4813]
[1722026208233,5.48,182.48,182.43,5.4813]
[1722026208428,13.0,182.47,182.43,5.4813]
[1722026208809,13.0,182.46,182.43,5.4813]
[1722026209216,5.48,182.48,182.43,5.4813]
[1722026209442,13.0,182.46,182.44,5.4812]
[1722026210132,13.0,182.47,182.44,5.4812]
[1722026211138,13.0,182.47,182.43,5.4815]
[1722026211433,13.0,182.46,182.43,5.4815]
[1722026212028,13.0,182.47,182.43,5.4815]
[1722026213645,5.48,182.48,182.43,5.4815]
[1722026214138,13.0,182.46,182.43,5.4815]
[1722026214338,5.4816,182.43,182.4,15.128]
[1722026214539,13.0,182.42,182.38,13.7075]
[1722026214722,5.4802,182.48,182.42,5.4815]
[1722026214921,5.4802,182.48,182.4,13.7054]
[1722026214922,13.0,182.45,182.43,5.4815]
[1722026215444,13.0,182.44,182.42,5.4817]
[1722026215942,13.0,182.44,182.41,5.4821]
[1722026216834,13.0,182.44,182.4,19.1877]
[1722026217035,13.0,182.41,182.36,16.1889]
[1722026217215,13.0,182.43,182.35,5.4836]
[1722026217216,13.0,182.38,182.35,5.4836]
[1722026217416,13.0,182.38,182.34,13.71]
[1722026218123,13.0,182.37,182.35,5.4838]
[1722026218326,13.0,182.37,182.34,13.71]
[1722026220043,13.0,182.37,182.34,19.1942]
[1722026221444,20.0,182.42,182.31,13.7128]
[1722026221445,13.0,182.36,182.31,13.7128]
[1722026221822,13.0,182.36,182.34,13.7106]
[1722026222023,13.0,182.37,182.34,13.7106]
[1722026222243,13.0,182.37,182.35,5.4836]
[1722026222939,5.4818,182.42,182.37,5.4831]
[1722026223237,13.0,182.39,182.36,19.1919]
[1722026223641,13.0,182.39,182.34,5.484]
[1722026223844,58.0,182.38,182.34,5.484]
[1722026224144,13.0,182.37,182.34,5.484]
[1722026224532,13.0,182.37,182.33,19.1956]
[1722026225447,13.0,182.36,182.33,19.1956]
[1722026225631,13.0,182.36,182.34,5.4842]
[1722026225832,13.0,182.37,182.35,5.4839]
[1722026226556,13.0,182.37,182.33,13.7112]
[1722026226557,13.0,182.37,182.33,19.1954]
[1722026226734,13.0,182.37,182.34,5.4841]
[1722026227439,13.0,182.36,182.33,19.1957]
[1722026227839,13.0,182.36,182.34,5.4842]
[1722026228239,13.0,182.35,182.34,5.4842]
[1722026228860,13.0,182.35,182.25,27.4339]
[1722026229088,13.0,182.3,182.27,13.7158]
[1722026229351,80.0125,182.38,182.31,5.485]
[1722026229352,5.4839,182.36,182.31,5.485]
[1722026229553,45.0,182.35,182.29,13.7137]
[1722026229854,45.0,182.35,182.3,5.4851]
[1722026230069,13.0,182.31,182.29,13.7137]
[1722026230363,13.0,182.3,182.29,13.7137]
[1722026232330,13.0,182.3,182.25,27.4339]
[1722026232530,65.0,182.35,182.25,27.4339]
[1722026232531,13.0,182.28,182.26,5.4864]
[1722026233707,13.0,182.28,182.25,19.2036]
[1722026234001,58.0,182.27,182.25,19.2036]
[1722026234366,58.0,182.27,182.25,13.7169]
[1722026234978,13.0,182.26,182.25,13.7169]
[1722026235674,13.0,182.26,182.2,56.8495]
[1722026235675,13.0,182.26,182.22,19.2071]
[1722026235877,13.0,182.24,182.22,13.7196]
[1722026236073,13.0,182.25,182.22,13.7196]
[1722026236368,13.0,182.23,182.22,13.7196]
[1722026236582,58.0,182.23,182.2,5.4883]
[1722026236771,58.0,182.22,182.19,19.2105]
[1722026237089,13.0,182.21,182.19,19.2105]
[1722026241390,13.0,182.21,182.19,13.7218]
[1722026241573,13.0,182.2,182.19,13.7218]
[1722026241773,13.0,182.2,182.19,19.2105]
[1722026242174,13.0,182.2,182.15,13.7243]
[1722026242374,13.0,182.18,182.15,13.7243]
[1722026242583,13.0,182.19,182.17,5.4893]
[1722026242790,13.0,182.19,182.18,19.2116]
[1722026243182,28.64580366,182.28,182.2,5.4884]
[1722026243373,28.64580366,182.28,182.18,13.7226]
[1722026243374,13.0,182.22,182.21,5.488]
[1722026243696,26.516,182.28,182.18,26.7226]
[1722026243874,26.516,182.28,182.18,13.7226]
[1722026243875,13.0,182.23,182.18,13.7226]
[1722026244075,13.0,182.23,182.22,5.4878]
[1722026246796,13.0,182.24,182.23,5.4875]
[1722026246995,12.002,182.28,182.24,5.487]
[1722026247295,5.4858,182.29,182.24,5.4872]
[1722026247497,13.0,182.26,182.24,5.4872]
[1722026247810,13.0,182.27,182.25,5.4869]
[1722026248687,13.0,182.27,182.23,19.2055]
[1722026249813,5.4875,182.23,182.17,6.58674395]
[1722026249978,13.0,182.25,182.16,19.2133]
[1722026249979,13.0,182.19,182.16,19.2133]
[1722026250169,20.0,182.27,182.19,13.7215]
[1722026250375,50.4867,182.26,182.2,5.4882]
[1722026250673,13.0,182.21,182.15,13.7242]
[1722026250876,13.0,182.2,182.15,13.7242]
[1722026251299,13.0,182.18,182.15,13.7242]
[1722026251480,13.0,182.18,182.15,19.2141]
[1722026251669,13.0,182.19,182.15,13.7242]
[1722026253399,13.0,182.19,182.17,5.4892]
[1722026253601,13.0,182.18,182.15,13.7242]
[1722026253897,13.0,182.17,182.15,19.2141]
[1722026254109,13.0,182.17,182.15,13.7242]
[1722026254282,13.0,182.16,182.15,13.7242]
[1722026254792,13.0,182.18,182.16,5.4896]
[1722026254989,13.0,182.18,182.15,19.2141]
[1722026255305,45.0,182.17,182.15,19.2141]
[1722026255512,13.0,182.18,182.16,5.4895]
[1722026255713,13.0,182.22,182.18,13.7225]
[1722026256002,13.0,182.22,182.18,19.2113]
[1722026256309,13.0,182.21,182.18,19.2113]
[1722026256505,13.0,182.2,182.18,19.2113]
[1722026256811,58.0,182.19,182.16,5.4895]
[1722026257187,58.0,182.19,182.12,14.09795672]
[1722026257188,5.4913,182.11,182.05,16.2352]
[1722026257495,13.0,182.07,181.98,22.5822]
[1722026257714,13.0,182.07,182.04,5.4932]
[1722026257896,20.0,182.12,182.08,5.4919]
[1722026258224,13.0,182.09,182.05,13.7324]
[1722026258427,13.0,182.07,182.01,13.0]
[1722026258717,13.0,182.07,182.05,5.4929]
[1722026259210,26.12,182.1,181.99,13.7367]
[1722026259419,45.0,182.09,181.99,13.7367]
[1722026259591,50.4918,182.09,182.01,5.494]
[1722026259784,45.0,182.09,182.01,5.494]
[1722026259984,5.4921,182.08,182.01,5.494]
[1722026260196,45.0,182.09,181.99,13.7367]
[1722026260197,45.0,182.07,182.02,5.4937]
[1722026260507,45.0,182.09,182.03,5.4935]
[1722026260686,45.0,182.09,182.04,5.4932]
[1722026260881,45.0,182.09,182.02,13.7341]
[1722026261312,45.0,182.09,181.98,16.2352]
[1722026261493,5.4927,182.06,182.0,5.4943]
[1722026261813,45.0,182.05,182.0,5.4943]
[1722026262314,45.0,182.05,181.99,5.4947]
[1722026262609,45.0,182.05,181.97,14.5233942]
[1722026262789,45.0,182.05,182.02,5.4937]
[1722026262990,15.2864,182.09,182.02,5.4937]
[1722026263193,50.4921,182.08,182.02,5.4937]
[1722026263707,45.0,182.08,181.97,0.7856942]
[1722026264020,65.0,182.08,181.97,6.2807942]
[1722026264314,5.4933,182.04,181.98,19.2321]
[1722026264491,45.0,182.03,181.98,19.2321]
[1722026264687,50.4936,182.03,181.98,13.7371]
[1722026265218,5.4939,182.02,181.97,0.7856942]
[1722026265893,50.4942,182.01,181.97,0.7856942]
[1722026266201,45.0,182.01,181.97,0.7856942]
[1722026266409,50.4942,182.01,181.97,0.7856942]
[1722026266711,45.0,182.01,181.97,0.7856942]
[1722026266917,45.0,182.02,181.97,14.5238942]
[1722026267127,5.493,182.05,181.97,14.5238942]
[1722026267613,58.1308,182.07,182.0,5.4944]
[1722026267806,58.1308,182.07,182.0,19.2298]
[1722026267807,32.0106,182.07,182.0,19.2298]
[1722026268324,32.0106,182.07,182.01,5.494]
[1722026268504,5.4927,182.06,182.01,5.494]
[1722026268900,50.493,182.05,182.0,19.23]
[1722026269497,50.493,182.05,182.0,13.7356]
[1722026269695,5.4934,182.04,181.98,5.4948]
[1722026269993,45.0,182.03,181.98,5.4949]
[1722026270417,50.4936,182.03,181.98,5.4949]
[1722026272914,45.0,182.03,181.98,5.4949]
[1722026273226,45.0,182.03,181.99,5.4947]
[1722026274623,50.4936,182.03,181.98,5.495]
[1722026275917,5.494,182.02,181.97,0.7856942]
[1722026276117,5.4945,182.0,181.97,0.7856942]
[1722026276325,50.4948,181.99,181.97,0.7856942]
[1722026277221,45.0,181.99,181.97,0.7856942]
[1722026277399,50.4945,182.0,181.97,0.7856942]
[1722026278007,5.4948,181.99,181.97,0.7856942]
[1722026278331,45.0,181.98,181.97,0.7856942]
[1722026280615,50.4951,181.98,181.97,0.7856942]
[1722026281712,45.0,181.98,181.97,0.7856942]
[1722026282134,15.5673,182.01,181.97,0.7856942]
[1722026282309,5.4939,182.02,181.97,6.2809942]
[1722026282724,5.4936,182.03,181.97,14.5235942]
[1722026283032,5.4939,182.02,181.98,5.495]
[1722026283406,5.4935,182.04,181.98,5.495]
[1722026283910,50.4937,182.03,181.98,5.495]
[1722026284243,5.4939,182.02,181.97,14.5235942]
[1722026284414,45.0,182.01,181.98,5.495]
[1722026284615,50.4936,182.03,181.98,5.495]
[1722026286005,5.4939,182.02,181.98,5.495]
[1722026286229,45.0,182.01,181.98,5.495]
[1722026286436,50.4936,182.03,181.98,5.495]
[1722026287141,5.4939,182.02,181.98,5.495]
[1722026287332,45.0,182.03,181.99,5.4947]
[1722026287922,45.0,182.03,182.0,5.4944]
[1722026288135,50.4933,182.04,181.97,29.7995942]
[1722026288450,50.4933,182.04,181.99,5.4947]
[1722026289415,5.4936,182.03,181.98,5.495]
[1722026289610,50.4939,182.02,181.98,5.495]
[1722026289832,45.0,182.01,181.97,20.0188942]
[1722026290136,5.4947,182.0,181.97,0.7856942]
[1722026290336,50.4949,181.99,181.97,0.7856942]
[1722026290527,5.4951,181.98,181.97,0.7856942]
[1722026290837,50.4951,181.98,181.97,0.7856942]
[1722026291541,45.0,181.98,181.97,0.2856942]
[1722026296545,50.4951,181.98,181.97,0.2856942]
[1722026297046,45.0,181.98,181.97,0.2856942]
[1722026298136,50.4951,181.98,181.97,0.2856942]
[1722026298449,70.4951,181.98,181.97,0.2856942]
[1722026299043,20.0,181.96,181.87,13.7459]
[1722026299321,5.4969,181.92,181.87,13.7459]
[1722026299625,45.0,181.91,181.87,19.2442]
[1722026301328,50.4972,181.91,181.87,19.2442]
[1722026301933,65.0,181.91,181.83,16.1771]
[1722026302152,5.4983,181.88,181.82,5.4999]
[1722026302346,65.0,181.91,181.79,23.2642942]
[1722026302347,45.0,181.87,181.79,23.2642942]
[1722026302530,45.0,181.87,181.84,5.4992]
[1722026302932,45.0,181.88,181.83,5.4996]
[1722026303145,45.0,181.88,181.82,13.7491]
[1722026303355,5.4984,181.87,181.82,13.7491]
[1722026303654,45.0,181.88,181.84,5.499]
[1722026303832,45.0,181.89,181.85,5.4987]
[1722026304040,45.0,181.9,181.84,13.7476]
[1722026304551,26.3166,181.93,181.84,13.7476]
[1722026304751,26.3166,181.93,181.84,19.2468]
[1722026304752,5.4978,181.89,181.84,19.2468]
[1722026305053,5.4975,181.9,181.84,19.2468]
[1722026305568,5.4975,181.9,181.85,5.4989]
[1722026305848,45.0,181.89,181.85,5.4989]
[1722026306025,45.0,181.9,181.84,13.7476]
[1722026306530,5.498,181.89,181.84,13.7476]
[1722026306835,50.4981,181.88,181.84,13.7476]
[1722026307235,50.4981,181.88,181.83,5.4996]
[1722026307527,5.4985,181.87,181.82,5.4998]
[1722026307727,45.0,181.86,181.82,5.4998]
[1722026308155,45.0,181.86,181.83,13.7487]
[1722026308542,45.0,181.87,181.83,13.7487]
[1722026309374,45.0,181.87,181.83,19.2483]
[1722026311532,50.4985,181.87,181.83,13.7487]
[1722026311845,20.0,181.85,181.79,0.7856942]
[1722026312160,5.5005,181.8,181.79,0.7856942]
[1722026312360,50.5005,181.8,181.79,0.7856942]
[1722026314045,70.5005,181.8,181.79,0.7856942]
[1722026314246,50.5005,181.8,181.79,0.7856942]
[1722026315153,5.5021,181.75,181.69,29.6112]
[1722026315565,91.12,181.8,181.72,13.7573]
[1722026315768,5.5014,181.77,181.72,13.7573]
[1722026315976,45.0,181.76,181.73,5.5026]
[1722026316163,5.5011,181.78,181.74,5.5023]
[1722026316481,50.5014,181.77,181.72,19.2602]
[1722026316688,5.5017,181.76,181.72,13.7573]
[1722026316868,45.0,181.75,181.72,13.7573]
[1722026317254,45.0,181.75,181.71,5.5032]
[1722026317484,45.0,181.75,181.69,35.1154]
[1722026317786,5.5024,181.74,181.69,35.1154]
[1722026317960,50.502,181.75,181.7,5.5035]
[1722026318163,5.5024,181.74,181.69,35.1155]
[1722026318355,45.0,181.73,181.69,35.1155]
[1722026318555,45.0,181.73,181.7,5.5035]
[1722026318755,50.5023,181.74,181.7,5.5035]
[1722026319268,45.0,181.74,181.7,5.5035]
[1722026319485,50.5023,181.74,181.69,35.1155]
[1722026320079,45.0,181.74,181.69,29.6117]
[1722026320484,45.0,181.74,181.71,5.5031]
[1722026320695,45.0,181.75,181.71,13.7574]
[1722026320859,45.0,181.76,181.71,13.7574]
[1722026321188,45.0,181.76,181.72,5.5026]
[1722026321391,8.6321044,181.79,181.73,13.7561]
[1722026321595,20.0,181.82,181.74,5.502]
[1722026322085,5.5004,181.81,181.73,13.7561]
[1722026322406,8.631285,181.85,181.76,22.7048]
[1722026322690,5.498,181.89,181.84,5.4993]
[1722026322887,5.4975,181.91,181.85,5.4989]
[1722026323093,5.4966,181.93,181.87,5.4983]
[1722026323402,8.62619231,181.9,181.86,13.7465]
[1722026323607,8.62619231,181.9,181.86,19.245]
[1722026323770,5.4969,181.92,181.86,13.7465]
[1722026323970,14.12295984,181.92,181.86,19.2451]
[1722026324498,5.4973,181.91,181.86,19.2451]
[1722026325005,5.4976,181.9,181.82,13.7492]
[1722026325614,14.12325984,181.92,181.86,5.4987]
[1722026325784,45.0,181.91,181.86,5.4987]
[1722026326285,8.62605984,181.92,181.87,5.4984]
[1722026326488,8.62605984,181.92,181.85,5.4987]
[1722026326687,8.62605984,181.92,181.81,27.5005]
[1722026326688,8.62605984,181.92,181.87,5.4983]
[1722026326887,8.62605984,181.92,181.86,19.2454]
[1722026327513,5.4974,181.91,181.86,19.2454]
[1722026328092,8.62605984,181.92,181.87,6.59790433]
[1722026328281,8.62605984,181.92,181.88,5.498]
[1722026328482,8.62605984,181.92,181.87,5.4982]
[1722026328721,8.62605984,181.92,181.86,13.7467]
[1722026328910,14.12295984,181.92,181.87,5.4983]
[1722026329311,5.4974,181.91,181.86,13.7467]
[1722026329690,5.4975,181.9,181.86,13.7467]
[1722026329906,5.4975,181.9,181.86,19.2454]
[1722026330421,8.62605984,181.92,181.86,13.7467]
[1722026330591,45.0,181.91,181.86,13.7467]
[1722026330791,5.4977,181.9,181.86,13.7467]
[1722026330992,45.0,181.89,181.84,5.4992]
[1722026331290,5.4981,181.88,181.83,5.4995]
[1722026331512,45.0,181.91,181.83,1.0997918]
[1722026331712,45.0,181.91,181.85,13.7475]
[1722026332222,45.0,181.91,181.88,5.4981]
[1722026332391,45.0,181.91,181.85,13.7475]
[1722026332892,8.62605984,181.92,181.86,1.09962795]
[1722026333191,8.62605984,181.92,181.86,17.01772795]
[1722026333397,5.4966,181.93,181.86,17.01772795]
[1722026334019,5.4966,181.93,181.89,5.4976]
[1722026334230,5.4966,181.93,181.89,6.59701885]
[1722026334426,5.4966,181.93,181.89,5.4976]
[1722026334597,5.4963,181.94,181.89,6.59701755]
[1722026335107,5.4963,181.94,181.89,5.4976]
[1722026335609,5.4966,181.93,181.88,19.243]
[1722026336320,5.4966,181.93,181.89,6.5972188]
[1722026336524,5.4963,181.94,181.89,6.5972188]
[1722026336722,5.496,181.95,181.9,5.4973]
[1722026337021,45.0,181.94,181.9,5.4973]
[1722026337501,50.4963,181.94,181.89,5.4977]
[1722026338939,5.496,181.95,181.9,5.4973]